[Event "FIDE WCCC Open-08 2024"]
[Site "Montesilvano"]
[Date "2024.11.26"]
[Round "11.31"]
[White "Lee, David J"]
[Black "Mudriievskyi, Jan"]
[Result "0-1"]
[ECO "B78"]
[WhiteElo "1446"]
[BlackElo "1682"]
[Annotator "NA RC"]
[PlyCount "114"]
[EventDate "2024.11.18"]
[EventType "swiss"]
[EventCountry "ITA"]
[SourceTitle "playchess.com"]
[Source "ChessBase"]
[SourceQuality "1"]
[TimeControl "5400+30"]

1. e4 {[%emt 0:00:46]} c5 {[%emt 0:00:30]} 2. Nf3 {[%emt 0:01:01]} d6 {[%emt 0:00:39]} 3. d4 {[%emt 0:00:39]} cxd4 {[%emt 0:01:21]} 4. Nxd4 {[%emt 0:01:40]} Nf6 {[%emt 0:01:33]} 5. Nc3 {[%emt 0:01:21]} g6 {[%emt 0:00:37]} 6. f3 {[%emt 0:02:47]} Bg7 {[%emt 0:00:48]} 7. Be3 {[%emt 0:00:23]} O-O {[%emt 0:01:07]} 8. Qd2 {[%emt 0:00:20]} Nc6 {[%emt 0:00:27]} 9. Bc4 {[%emt 0:01:38]} Bd7 {[%emt 0:01:00]} 10. O-O-O {[%emt 0:01:04]} Rc8 {[%emt 0:00:41]} 11. Bb3 {[%emt 0:00:57]} Nxd4 {[%emt 0:01:42]} 12. Bxd4 {[%emt 0:00:28]} b5 {[%emt 0:00:29]} 13. Nd5 {[%emt 0:02:49]} Nxd5 {[%emt 0:01:13]} 14. Bxg7 {[%emt 0:00:55]} Kxg7 {[%emt 0:01:15]} 15. exd5 {[%emt 0:00:29]} a5 {[%emt 0:01:18]} 16. a3 {[%emt 0:00:45]} Qc7 {[%emt 0:03:58]} 17. g4 {[%emt 0:04:06]} f5 {[%emt 0:02:44]} 18. g5 {[%emt 0:01:59]} a4 {[%emt 0:01:11]} 19. Ba2 {[%emt 0:00:10]} f4 {[%emt 0:00:22]} 20. Qd4+ {[%emt 0:01:49]} Kg8 {[%emt 0:00:21]} 21. Rd2 {[%emt 0:04:35]} Bf5 {[%emt 0:01:39]} 22. Bb1 {[%emt 0:01:09]} Qc5 {[%emt 0:02:24]} 23. h4 {[%emt 0:03:26]} Qxd4 {[%emt 0:05:52]} 24. Rxd4 {[%emt 0:00:26]} Bd7 {[%emt 0:00:08]} 25. h5 {[%emt 0:01:33]} Rf5 {[%emt 0:02:39]} 26. hxg6 {[%emt 0:00:41]} hxg6 {[%emt 0:01:53]} 27. Rg1 {[%emt 0:02:20]} Rc5 {[%emt 0:03:21]} 28. c3 {[%emt 0:07:35]} Rfxd5 {[%emt 0:02:43]} 29. Rxd5 {[%emt 0:01:13]} Rxd5 {[%emt 0:00:51]} 30. Bxg6 {[%emt 0:00:47]} Kg7 {[%emt 1:00:44]} 31. Be4 {[%emt 0:00:32]} Re5 {[%emt 0:00:00]} 32. Kd2 {[%emt 0:00:49]} Be6 {[%emt 0:00:00]} 33. Kd3 {[%emt 0:18:37]} Bf5 {[%emt 0:00:00]} 34. Bxf5 {[%emt 0:00:44]} Rxf5 {[%emt 0:00:00]} 35. Ke4 {[%emt 0:00:17]} Kg6 {[%emt 0:00:00]} 36. Rg2 {[%emt 0:10:43]} Rxg5 {[%emt 0:00:00]} 37. Rd2 {[%emt 0:01:04]} Rf5 {[%emt 0:00:00]} 38. b3 {[%emt 0:06:47]} axb3 {[%emt 0:00:00]} 39. Rb2 {[%emt 0:00:08]} Rc5 {[%emt 0:00:00]} 40. Rxb3 {[%emt 0:00:35]} e5 {[%emt 0:00:00]} 41. Kd3 {[%emt 0:01:08]} Kf5 {[%emt 0:00:00]} 42. Rb1 {[%emt 0:00:49]} d5 {[%emt 0:00:00]} 43. Rf1 {[%emt 0:00:38]} Rc4 {[%emt 0:00:00]} 44. Rc1 {[%emt 0:00:15]} d4 {[%emt 0:00:00]} 45. Rc2 {[%emt 0:00:21]} Rxc3+ {[%emt 0:00:00]} 46. Rxc3 {[%emt 0:00:20]} dxc3 {[%emt 0:00:00]} 47. Kxc3 {[%emt 0:00:01]} e4 {[%emt 0:00:00]} 48. Kd2 {[%emt 0:00:25]} exf3 {[%emt 0:00:00]} 49. Ke1 {[%emt 0:00:15]} Ke5 {[%emt 0:00:00]} 50. Kf2 {[%emt 0:00:09]} Ke4 {[%emt 0:00:00]} 51. Kf1 {[%emt 0:00:26]} Ke3 {[%emt 0:00:00]} 52. Ke1 {[%emt 0:00:07]} f2+ {[%emt 0:00:00]} 53. Kf1 {[%emt 0:00:05]} f3 {[%emt 0:00:00]} 54. a4 {[%emt 0:00:06]} b4 {[%emt 0:00:00]} 55. a5 {[%emt 0:00:07]} b3 {[%emt 0:00:00]} 56. a6 {[%emt 0:00:05]} b2 {[%emt 0:00:00]} 57. a7 {[%emt 0:00:06]} b1=Q# {[%emt 0:00:00]} 0-1

[Event "FIDE WCCC Open-08 2024"]
[Site "Montesilvano"]
[Date "2024.11.26"]
[Round "11.32"]
[White "Szumiec, Jan"]
[Black "Shroff, Dhairya Amit"]
[Result "1-0"]
[ECO "C06"]
[WhiteElo "1678"]
[BlackElo "1444"]
[Annotator "NA RC"]
[PlyCount "65"]
[EventDate "2024.11.18"]
[EventType "swiss"]
[EventCountry "ITA"]
[SourceTitle "playchess.com"]
[Source "ChessBase"]
[SourceQuality "1"]
[TimeControl "5400+30"]

1. e4 {[%emt 0:00:07]} e6 {[%emt 0:00:25]} 2. d4 {[%emt 0:00:09]} d5 {[%emt 0:00:36]} 3. Nd2 {[%emt 0:00:08]} Nf6 {[%emt 0:00:11]} 4. e5 {[%emt 0:00:08]} Nfd7 {[%emt 0:00:14]} 5. Bd3 {[%emt 0:00:37]} c5 {[%emt 0:00:24]} 6. c3 {[%emt 0:00:25]} Nc6 {[%emt 0:00:18]} 7. Ne2 {[%emt 0:00:15]} cxd4 {[%emt 0:00:52]} 8. cxd4 {[%emt 0:00:15]} Qb6 {[%emt 0:00:23]} 9. Nf3 {[%emt 1:32:56]} f6 {[%emt 0:02:45]} 10. exf6 {[%emt 0:00:00]} Nxf6 {[%emt 0:00:17]} 11. O-O {[%emt 0:00:00]} Bd6 {[%emt 0:01:37]} 12. Bf4 {[%emt 0:00:00]} Bxf4 {[%emt 0:01:57]} 13. Nxf4 {[%emt 0:00:00]} O-O {[%emt 0:00:42]} 14. Re1 {[%emt 0:00:00]} Ne4 {[%emt 0:06:48]} 15. g3 {[%emt 0:00:00]} Qxb2 {[%emt 0:04:39]} 16. Bxe4 {[%emt 0:00:00]} dxe4 {[%emt 0:00:46]} 17. Rxe4 {[%emt 0:00:00]} Nb4 {[%emt 0:03:19]} 18. Ng5 {[%emt 0:00:00]} Nxa2 {[%emt 0:02:01]} 19. Nd3 {[%emt 0:00:00]} Qb5 {[%emt 0:08:17]} 20. Re5 {[%emt 0:05:30]} Qc4 {[%emt 0:01:02]} 21. Rc5 {[%emt 0:00:00]} Qxd4 {[%emt 0:03:16]} 22. Rxa2 {[%emt 0:00:00]} h6 {[%emt 0:00:36]} 23. Nf3 {[%emt 0:00:00]} Qe4 {[%emt 0:05:26]} 24. Nde5 {[%emt 0:00:00]} b6 {[%emt 0:01:10]} 25. Rc7 {[%emt 0:00:00]} a5 {[%emt 0:02:14]} 26. Re2 {[%emt 0:00:00]} Qh7 {[%emt 0:03:11]} 27. Rd2 {[%emt 0:00:00]} Ba6 {[%emt 0:01:56]} 28. Rdd7 {[%emt 0:00:00]} b5 {[%emt 0:00:31]} 29. Rxg7+ {[%emt 0:00:00]} Qxg7 {[%emt 0:00:09]} 30. Rxg7+ {[%emt 0:00:00]} Kxg7 {[%emt 0:00:06]} 31. Qd7+ {[%emt 0:00:00]} Kf6 {[%emt 0:01:19]} 32. Qh7 {[%emt 0:00:00]} b4 {[%emt 0:01:38]} 33. Nd7# {[%emt 0:00:00]} 1-0

[Event "FIDE WCCC Open-08 2024"]
[Site "Montesilvano"]
[Date "2024.11.26"]
[Round "11.33"]
[White "Borkowski, Jan"]
[Black "Czachurski, Ignacy"]
[Result "1-0"]
[ECO "D70"]
[WhiteElo "1481"]
[BlackElo "1672"]
[Annotator "NA RC"]
[PlyCount "121"]
[EventDate "2024.11.18"]
[EventType "swiss"]
[EventCountry "ITA"]
[SourceTitle "playchess.com"]
[Source "ChessBase"]
[SourceQuality "1"]
[TimeControl "5400+30"]

1. d4 {[%emt 0:00:02]} Nf6 {[%emt 0:00:12]} 2. c4 {[%emt 0:00:10]} g6 {[%emt 0:00:18]} 3. f3 {[%emt 0:01:35]} d5 {[%emt 0:01:52]} 4. cxd5 {[%emt 0:00:15]} Nxd5 {[%emt 0:00:27]} 5. e4 {[%emt 0:00:33]} Nb6 {[%emt 0:00:55]} 6. Nc3 {[%emt 0:00:23]} Bg7 {[%emt 0:01:47]} 7. Be3 {[%emt 0:00:16]} O-O {[%emt 0:02:00]} 8. Qd2 {[%emt 0:00:24]} e5 {[%emt 0:07:50]} 9. d5 {[%emt 0:01:48]} f5 {[%emt 0:00:34]} 10. O-O-O {[%emt 0:10:02]} f4 {[%emt 0:08:40]} 11. Bc5 {[%emt 0:01:32]} Re8 {[%emt 0:01:34]} 12. g4 {[%emt 0:01:22]} N8d7 {[%emt 0:02:50]} 13. Bf2 {[%emt 0:02:34]} Bf8 {[%emt 0:04:34]} 14. Bd3 {[%emt 0:01:41]} Bc5 {[%emt 0:01:18]} 15. h4 {[%emt 0:04:52]} Bxf2 {[%emt 0:02:01]} 16. Qxf2 {[%emt 0:00:10]} h6 {[%emt 0:00:14]} 17. Bc2 {[%emt 0:01:30]} Nc4 {[%emt 0:02:00]} 18. Bb3 {[%emt 0:01:20]} Ne3 {[%emt 0:01:50]} 19. Rd2 {[%emt 0:01:13]} Nc5 {[%emt 0:01:21]} 20. Bc2 {[%emt 0:05:20]} b6 {[%emt 0:02:45]} 21. b3 {[%emt 0:14:26]} Nb7 {[%emt 0:01:58]} 22. Nd1 {[%emt 0:06:54]} Nxc2 {[%emt 0:02:23]} 23. Rxc2 {[%emt 0:00:13]} a5 {[%emt 0:00:47]} 24. Nb2 {[%emt 0:01:37]} Nc5 {[%emt 0:02:02]} 25. Kb1 {[%emt 0:02:01]} Ba6 {[%emt 0:00:49]} 26. Qd2 {[%emt 0:01:28]} Qd7 {[%emt 0:02:43]} 27. Ne2 {[%emt 0:01:20]} Rad8 {[%emt 0:03:06]} 28. Rd1 {[%emt 0:02:29]} Qe7 {[%emt 0:04:01]} 29. h5 {[%emt 0:00:33]} g5 {[%emt 0:00:09]} 30. Nc3 {[%emt 0:01:36]} b5 {[%emt 0:02:48]} 31. Nd3 {[%emt 0:02:48]} Ra8 {[%emt 0:09:27]} 32. Nxc5 {[%emt 0:01:32]} Qxc5 {[%emt 0:00:17]} 33. Na4 {[%emt 0:01:05]} Qd6 {[%emt 0:01:01]} 34. Nc5 {[%emt 0:00:36]} b4 {[%emt 0:01:40]} 35. Ne6 {[%emt 0:00:57]} Rec8 {[%emt 0:01:18]} 36. Rc6 {[%emt 0:00:54]} Qe7 {[%emt 0:00:58]} 37. Rdc1 {[%emt 0:00:15]} Bb5 {[%emt 0:03:13]} 38. Rxc7 {[%emt 0:01:22]} Rxc7 {[%emt 0:00:13]} 39. Nxc7 {[%emt 0:00:48]} Rb8 {[%emt 0:00:11]} 40. Nxb5 {[%emt 0:00:45]} Rxb5 {[%emt 0:00:11]} 41. d6 {[%emt 0:00:44]} Qd8 {[%emt 0:01:29]} 42. d7 {[%emt 0:00:34]} Rb8 {[%emt 0:00:07]} 43. Qd5+ {[%emt 0:00:51]} Kh7 {[%emt 0:00:15]} 44. Qxe5 {[%emt 0:00:28]} a4 {[%emt 0:00:52]} 45. Qf5+ {[%emt 0:00:40]} Kg7 {[%emt 0:00:20]} 46. Qg6+ {[%emt 0:00:16]} Kf8 {[%emt 0:00:24]} 47. Qxh6+ {[%emt 0:00:21]} Kf7 {[%emt 0:00:22]} 48. Qg6+ {[%emt 0:01:55]} Ke7 {[%emt 0:01:07]} 49. Qxg5+ {[%emt 0:00:42]} Kf7 {[%emt 0:00:18]} 50. Qxf4+ {[%emt 0:00:33]} Kg8 {[%emt 0:00:09]} 51. Qxb8 {[%emt 0:00:16]} Qxb8 {[%emt 0:00:15]} 52. Rc8+ {[%emt 0:00:04]} Qxc8 {[%emt 0:00:12]} 53. dxc8=Q+ {[%emt 0:00:20]} Kh7 {[%emt 0:00:13]} 54. h6 {[%emt 0:00:23]} a3 {[%emt 0:00:07]} 55. e5 {[%emt 0:00:15]} Kg6 {[%emt 0:00:08]} 56. Qf5+ {[%emt 0:00:21]} Kxh6 {[%emt 0:00:12]} 57. e6 {[%emt 0:00:08]} Kg7 {[%emt 0:00:15]} 58. e7 {[%emt 0:00:07]} Kh6 {[%emt 0:00:11]} 59. e8=Q {[%emt 0:01:50]} Kg7 {[%emt 0:00:01]} 60. Qeg6+ {[%emt 0:00:14]} Kh8 {[%emt 0:00:14]} 61. Qh7# {[%emt 0:00:46]} 1-0

[Event "FIDE WCCC Open-08 2024"]
[Site "Montesilvano"]
[Date "2024.11.26"]
[Round "11.35"]
[White "Cardas, Serghei"]
[Black "Melkonyan, Mark"]
[Result "1/2-1/2"]
[ECO "D37"]
[WhiteElo "1627"]
[BlackElo "1445"]
[Annotator "NA RC"]
[PlyCount "236"]
[EventDate "2024.11.18"]
[EventType "swiss"]
[EventCountry "ITA"]
[SourceTitle "playchess.com"]
[Source "ChessBase"]
[SourceQuality "1"]
[TimeControl "5400+30"]

1. d4 {[%emt 0:00:01]} d5 {[%emt 0:00:06]} 2. c4 {[%emt 0:00:10]} e6 {[%emt 0:00:05]} 3. Nc3 {[%emt 0:00:08]} Be7 {[%emt 0:00:07]} 4. Nf3 {[%emt 0:00:42]} Nf6 {[%emt 0:01:07]} 5. Bf4 {[%emt 0:00:38]} O-O {[%emt 0:01:43]} 6. e3 {[%emt 0:00:13]} h6 {[%emt 0:01:50]} 7. Bd3 {[%emt 0:00:21]} dxc4 {[%emt 0:00:09]} 8. Bxc4 {[%emt 0:00:09]} b6 {[%emt 0:02:23]} 9. O-O {[%emt 0:00:32]} Bb7 {[%emt 0:00:48]} 10. Re1 {[%emt 0:01:19]} Nbd7 {[%emt 0:00:36]} 11. Rc1 {[%emt 0:01:31]} c5 {[%emt 0:00:45]} 12. Qe2 {[%emt 0:01:20]} cxd4 {[%emt 0:01:44]} 13. exd4 {[%emt 0:00:14]} Rc8 {[%emt 0:01:13]} 14. Bd3 {[%emt 0:00:49]} Re8 {[%emt 0:02:09]} 15. Bg3 {[%emt 0:01:37]} Nd5 {[%emt 0:01:31]} 16. Nxd5 {[%emt 0:00:31]} exd5 {[%emt 0:02:23]} 17. Qd2 {[%emt 0:00:45]} a5 {[%emt 0:05:39]} 18. a3 {[%emt 0:00:13]} Rxc1 {[%emt 0:09:20]} 19. Rxc1 {[%emt 0:00:35]} Bg5 {[%emt 0:01:00]} 20. Nxg5 {[%emt 0:00:08]} Qxg5 {[%emt 0:00:24]} 21. Qxg5 {[%emt 0:00:08]} hxg5 {[%emt 0:00:09]} 22. Bb5 {[%emt 0:00:32]} Rc8 {[%emt 0:07:33]} 23. Rxc8+ {[%emt 0:00:39]} Bxc8 {[%emt 0:00:07]} 24. Bxd7 {[%emt 0:00:22]} Bxd7 {[%emt 0:00:13]} 25. Bc7 {[%emt 0:00:03]} f6 {[%emt 0:01:08]} 26. Bxb6 {[%emt 0:00:07]} a4 {[%emt 0:00:06]} 27. Kf1 {[%emt 0:00:13]} Kf7 {[%emt 0:00:30]} 28. Ke2 {[%emt 0:00:07]} Ke6 {[%emt 0:01:36]} 29. g3 {[%emt 0:00:33]} g4 {[%emt 0:01:37]} 30. Ke3 {[%emt 0:00:15]} f5 {[%emt 0:01:33]} 31. Kf4 {[%emt 0:00:13]} g6 {[%emt 0:01:49]} 32. Ke3 {[%emt 0:00:36]} Kd6 {[%emt 0:00:47]} 33. Bc5+ {[%emt 0:00:40]} Kc6 {[%emt 0:00:16]} 34. Kf4 {[%emt 0:00:11]} Be8 {[%emt 0:01:19]} 35. Ke5 {[%emt 0:00:37]} Bf7 {[%emt 0:01:07]} 36. Kf6 {[%emt 0:00:06]} Be8 {[%emt 0:00:11]} 37. Ke7 {[%emt 0:00:05]} Bd7 {[%emt 0:01:34]} 38. Bb4 {[%emt 0:00:55]} Bc8 {[%emt 0:02:13]} 39. Kf6 {[%emt 0:00:04]} Kb5 {[%emt 0:00:56]} 40. Kxg6 {[%emt 0:00:06]} Kc4 {[%emt 0:00:33]} 41. Bc3 {[%emt 0:00:07]} Kd3 {[%emt 0:00:56]} 42. Kf6 {[%emt 0:01:32]} Ke4 {[%emt 0:00:54]} 43. Kg5 {[%emt 0:01:33]} Kf3 {[%emt 0:00:19]} 44. Be1 {[%emt 0:00:23]} Ke2 {[%emt 0:00:08]} 45. Bc3 {[%emt 0:00:13]} Kxf2 {[%emt 0:00:08]} 46. Kf4 {[%emt 0:00:08]} Kg2 {[%emt 0:00:40]} 47. Be1 {[%emt 0:01:07]} Kxh2 {[%emt 0:01:27]} 48. Ke5 {[%emt 0:00:11]} Bb7 {[%emt 0:02:34]} 49. Kxf5 {[%emt 0:00:07]} Kh3 {[%emt 0:01:01]} 50. Ke6 {[%emt 0:00:11]} Kg2 {[%emt 0:00:33]} 51. Kd6 {[%emt 0:01:39]} Kf1 {[%emt 0:00:59]} 52. Bd2 {[%emt 0:00:22]} Ke2 {[%emt 0:00:27]} 53. Bf4 {[%emt 0:00:21]} Kd3 {[%emt 0:00:11]} 54. Kc5 {[%emt 0:00:15]} Kc2 {[%emt 0:02:12]} 55. Kb5 {[%emt 0:00:08]} Kb3 {[%emt 0:00:39]} 56. Bd2 {[%emt 0:01:05]} Ba8 {[%emt 0:00:48]} 57. Bc3 {[%emt 0:00:07]} Bb7 {[%emt 0:00:53]} 58. Kc5 {[%emt 0:00:28]} Ba8 {[%emt 0:00:37]} 59. Kd6 {[%emt 0:00:06]} Kc4 {[%emt 0:00:42]} 60. Ke5 {[%emt 0:00:18]} Bb7 {[%emt 0:00:19]} 61. Kf4 {[%emt 0:01:32]} Bc8 {[%emt 0:00:13]} 62. Ke3 {[%emt 0:00:12]} Bf5 {[%emt 0:00:34]} 63. Kf4 {[%emt 0:00:08]} Bd7 {[%emt 0:00:20]} 64. Ke3 {[%emt 0:00:04]} Bf5 {[%emt 0:01:21]} 65. Kf4 {[%emt 0:00:04]} Bc8 {[%emt 0:00:07]} 66. Ke3 {[%emt 0:00:05]} Bd7 {[%emt 0:00:06]} 67. Kd2 {[%emt 0:00:14]} Bf5 {[%emt 0:00:16]} 68. Ke3 {[%emt 0:00:02]} Be4 {[%emt 0:00:25]} 69. Kd2 {[%emt 0:00:10]} Bf3 {[%emt 0:00:19]} 70. Ke3 {[%emt 0:00:07]} Kb3 {[%emt 0:00:28]} 71. Kd2 {[%emt 0:00:17]} Be4 {[%emt 0:00:30]} 72. Kc1 {[%emt 0:00:26]} Ka2 {[%emt 0:00:34]} 73. Bb4 {[%emt 0:00:08]} Kb3 {[%emt 0:00:45]} 74. Bc3 {[%emt 0:00:06]} Bf3 {[%emt 0:00:55]} 75. Kd2 {[%emt 0:00:10]} Be4 {[%emt 0:00:42]} 76. Kc1 {[%emt 0:00:06]} Ka2 {[%emt 0:00:39]} 77. Bb4 {[%emt 0:00:15]} Bf3 {[%emt 0:00:53]} 78. Bc3 {[%emt 0:00:07]} Kb3 {[%emt 0:00:20]} 79. Kd2 {[%emt 0:00:05]} Bg2 {[%emt 0:00:33]} 80. Kc1 {[%emt 0:00:05]} Bf1 {[%emt 0:00:19]} 81. Kd2 {[%emt 0:00:07]} Kc4 {[%emt 0:00:29]} 82. Ke3 {[%emt 0:00:11]} Bd3 {[%emt 0:00:51]} 83. Kd2 {[%emt 0:00:06]} Bb1 {[%emt 0:00:37]} 84. Ke3 {[%emt 0:00:08]} Bc2 {[%emt 0:00:39]} 85. Kd2 {[%emt 0:00:02]} Kb3 {[%emt 0:00:57]} 86. Kc1 {[%emt 0:00:10]} Bh7 {[%emt 0:00:25]} 87. Kd2 {[%emt 0:00:04]} Ka2 {[%emt 0:00:29]} 88. Kc1 {[%emt 0:00:07]} Bd3 {[%emt 0:01:29]} 89. Bb4 {[%emt 0:00:09]} Kb3 {[%emt 0:00:22]} 90. Bc3 {[%emt 0:00:07]} Kc4 {[%emt 0:00:08]} 91. Kd2 {[%emt 0:00:07]} Be4 {[%emt 0:00:17]} 92. Ke3 {[%emt 0:00:04]} Bf3 {[%emt 0:00:15]} 93. Kd2 {[%emt 0:00:05]} Kb5 {[%emt 0:00:16]} 94. Bb4 {[%emt 0:00:18]} Kc6 {[%emt 0:00:22]} 95. Kc3 {[%emt 0:00:26]} Kd7 {[%emt 0:00:38]} 96. b3 {[%emt 0:00:12]} axb3 {[%emt 0:00:29]} 97. Kxb3 {[%emt 0:00:05]} Bd1+ {[%emt 0:00:33]} 98. Kc3 {[%emt 0:00:10]} Ke6 {[%emt 0:00:28]} 99. Kd2 {[%emt 0:00:09]} Ba4 {[%emt 0:00:18]} 100. Bc5 {[%emt 0:01:38]} Kf5 {[%emt 0:00:52]} 101. Bd6 {[%emt 0:00:12]} Ke4 {[%emt 0:00:25]} 102. Be5 {[%emt 0:00:05]} Kf5 {[%emt 0:00:57]} 103. Kc3 {[%emt 0:00:06]} Ke6 {[%emt 0:00:16]} 104. Kb4 {[%emt 0:00:02]} Bd1 {[%emt 0:00:26]} 105. a4 {[%emt 0:00:05]} Kd7 {[%emt 0:00:41]} 106. Kb5 {[%emt 0:00:31]} Kc8 {[%emt 0:00:42]} 107. a5 {[%emt 0:00:08]} Kb7 {[%emt 0:00:16]} 108. Kc5 {[%emt 0:00:32]} Bf3 {[%emt 0:00:11]} 109. Bf6 {[%emt 0:00:27]} Ka6 {[%emt 0:00:37]} 110. Bd8 {[%emt 0:00:18]} Bg2 {[%emt 0:00:24]} 111. Kd6 {[%emt 0:00:07]} Be4 {[%emt 0:00:18]} 112. Ke5 {[%emt 0:00:06]} Bf3 {[%emt 0:00:05]} 113. Kf4 {[%emt 0:00:06]} Kb5 {[%emt 0:01:03]} 114. Ke5 {[%emt 0:00:18]} Bg2 {[%emt 0:00:41]} 115. Kd6 {[%emt 0:00:10]} Be4 {[%emt 0:00:38]} 116. Bb6 {[%emt 0:00:09]} Ka6 {[%emt 0:00:40]} 117. Kc7 {[%emt 0:00:11]} Bd3 {[%emt 0:00:14]} 118. Kc6 {[%emt 0:00:20]} Bf5 {[%emt 0:42:57]} 1/2-1/2

[Event "FIDE WCCC Open-08 2024"]
[Site "Montesilvano"]
[Date "2024.11.26"]
[Round "11.36"]
[White "Bakirli, Matin"]
[Black "Juzbasic, Marul"]
[Result "0-1"]
[ECO "C54"]
[WhiteElo "1578"]
[BlackElo "1726"]
[Annotator "NA RC"]
[PlyCount "74"]
[EventDate "2024.11.18"]
[EventType "swiss"]
[EventCountry "ITA"]
[SourceTitle "playchess.com"]
[Source "ChessBase"]
[SourceQuality "1"]
[TimeControl "5400+30"]

1. e4 {[%emt 0:00:03]} e5 {[%emt 0:00:07]} 2. Nf3 {[%emt 0:00:04]} Nc6 {[%emt 0:00:05]} 3. Bc4 {[%emt 0:00:06]} Bc5 {[%emt 0:00:06]} 4. c3 {[%emt 0:00:05]} Nf6 {[%emt 0:00:07]} 5. d4 {[%emt 0:00:05]} exd4 {[%emt 0:00:09]} 6. e5 {[%emt 0:00:03]} Ne4 {[%emt 0:00:36]} 7. cxd4 {[%emt 0:00:10]} Bb4+ {[%emt 0:00:40]} 8. Bd2 {[%emt 0:00:21]} Nxd2 {[%emt 0:02:30]} 9. Nbxd2 {[%emt 0:00:22]} d5 {[%emt 0:00:29]} 10. Bb5 {[%emt 0:00:45]} O-O {[%emt 0:01:09]} 11. Bxc6 {[%emt 0:00:14]} bxc6 {[%emt 0:00:06]} 12. Qc2 {[%emt 0:01:31]} Qd7 {[%emt 0:06:30]} 13. h3 {[%emt 0:01:27]} f6 {[%emt 0:01:52]} 14. O-O {[%emt 0:00:39]} Qe6 {[%emt 0:06:23]} 15. exf6 {[%emt 0:00:56]} Qxf6 {[%emt 0:01:35]} 16. Ne5 {[%emt 0:00:51]} c5 {[%emt 0:01:37]} 17. a3 {[%emt 0:01:16]} cxd4 {[%emt 0:01:59]} 18. axb4 {[%emt 0:02:26]} Qxe5 {[%emt 0:00:34]} 19. Qc6 {[%emt 0:01:00]} Rb8 {[%emt 0:09:38]} 20. Rxa7 {[%emt 0:03:03]} Qg5 {[%emt 0:06:16]} 21. f4 {[%emt 0:01:36]} Qd8 {[%emt 0:06:23]} 22. Rxc7 {[%emt 0:01:09]} Rxb4 {[%emt 0:52:39]} 23. Rc1 {[%emt 0:01:52]} Bf5 {[%emt 0:00:00]} 24. Nf3 {[%emt 0:03:51]} d3 {[%emt 0:00:00]} 25. Ne5 {[%emt 0:01:56]} Rxb2 {[%emt 0:00:00]} 26. Qc3 {[%emt 0:05:50]} Rc2 {[%emt 0:00:00]} 27. Rxc2 {[%emt 0:01:06]} dxc2 {[%emt 0:00:00]} 28. g4 {[%emt 0:01:26]} Be4 {[%emt 0:00:00]} 29. g5 {[%emt 0:04:20]} Qe8 {[%emt 0:00:00]} 30. Ra7 {[%emt 0:10:02]} Rxf4 {[%emt 0:00:00]} 31. Nf3 {[%emt 0:01:26]} c1=Q+ {[%emt 0:00:00]} 32. Qxc1 {[%emt 0:00:08]} Rxf3 {[%emt 0:00:00]} 33. Qa1 {[%emt 0:00:08]} Rg3+ {[%emt 0:00:00]} 34. Kf2 {[%emt 0:00:25]} Qf8+ {[%emt 0:00:00]} 35. Ke2 {[%emt 0:00:16]} Qf3+ {[%emt 0:00:00]} 36. Kd2 {[%emt 0:00:11]} Rg2+ {[%emt 0:00:00]} 37. Ke1 {[%emt 0:00:16]} Qe2# {[%emt 0:00:00]} 0-1

[Event "FIDE WCCC Open-08 2024"]
[Site "Montesilvano"]
[Date "2024.11.26"]
[Round "11.37"]
[White "Petrenko, Tymofii"]
[Black "Kim, Rian B"]
[Result "1-0"]
[ECO "C02"]
[WhiteElo "1678"]
[BlackElo "1452"]
[Annotator "NA RC"]
[PlyCount "47"]
[EventDate "2024.11.18"]
[EventType "swiss"]
[EventCountry "ITA"]
[SourceTitle "playchess.com"]
[Source "ChessBase"]
[SourceQuality "1"]
[TimeControl "5400+30"]

1. e4 {[%emt 0:00:01]} e6 {[%emt 0:00:07]} 2. d4 {[%emt 0:00:11]} d5 {[%emt 0:00:10]} 3. e5 {[%emt 0:00:11]} c5 {[%emt 0:00:11]} 4. c3 {[%emt 0:00:05]} Nc6 {[%emt 0:00:06]} 5. Nf3 {[%emt 0:00:05]} Bd7 {[%emt 0:00:11]} 6. a3 {[%emt 0:00:38]} c4 {[%emt 0:00:07]} 7. Nbd2 {[%emt 0:00:10]} Nge7 {[%emt 0:00:20]} 8. Be2 {[%emt 0:00:29]} Na5 {[%emt 0:01:58]} 9. Rb1 {[%emt 0:00:33]} Nc8 {[%emt 0:03:22]} 10. O-O {[%emt 0:01:20]} Nb6 {[%emt 0:00:11]} 11. b3 {[%emt 0:00:14]} cxb3 {[%emt 0:01:50]} 12. Nxb3 {[%emt 0:00:06]} Nac4 {[%emt 0:01:29]} 13. Ra1 {[%emt 0:13:46]} Be7 {[%emt 0:04:01]} 14. Bd3 {[%emt 0:01:35]} Rc8 {[%emt 0:02:05]} 15. Qc2 {[%emt 0:03:01]} h5 {[%emt 0:01:56]} 16. h3 {[%emt 0:01:00]} g5 {[%emt 0:02:31]} 17. Nh2 {[%emt 0:00:35]} f6 {[%emt 0:03:55]} 18. exf6 {[%emt 0:00:32]} Bxf6 {[%emt 0:00:27]} 19. f4 {[%emt 0:00:14]} Ba4 {[%emt 0:03:37]} 20. fxg5 {[%emt 0:02:06]} Bxb3 {[%emt 0:02:07]} 21. Qxb3 {[%emt 0:00:27]} Be7 {[%emt 0:04:27]} 22. g6 {[%emt 0:01:44]} Qd6 {[%emt 0:01:37]} 23. g7 {[%emt 0:00:23]} Rg8 {[%emt 0:00:12]} 24. Bh6 {[%emt 0:00:09]} 1-0

[Event "FIDE WCCC Open-08 2024"]
[Site "Montesilvano"]
[Date "2024.11.26"]
[Round "11.38"]
[White "Le Doan, Minh Thuc"]
[Black "Glod, Peter"]
[Result "1-0"]
[ECO "C56"]
[WhiteElo "1677"]
[BlackElo "1409"]
[Annotator "NA RC"]
[PlyCount "53"]
[EventDate "2024.11.18"]
[EventType "swiss"]
[EventCountry "ITA"]
[SourceTitle "playchess.com"]
[Source "ChessBase"]
[SourceQuality "1"]
[TimeControl "5400+30"]

1. e4 {[%emt 0:00:01]} e5 {[%emt 0:00:09]} 2. Nf3 {[%emt 0:00:02]} Nc6 {[%emt 0:00:10]} 3. d4 {[%emt 0:00:09]} exd4 {[%emt 0:00:11]} 4. Bc4 {[%emt 0:00:05]} Nf6 {[%emt 0:00:12]} 5. O-O {[%emt 0:00:07]} Nxe4 {[%emt 0:00:16]} 6. Re1 {[%emt 0:00:05]} d5 {[%emt 0:00:05]} 7. Bxd5 {[%emt 0:00:09]} Qxd5 {[%emt 0:00:13]} 8. Nc3 {[%emt 0:00:04]} Qh5 {[%emt 0:00:09]} 9. Nxe4 {[%emt 0:01:17]} Be6 {[%emt 0:02:43]} 10. Bg5 {[%emt 0:00:14]} Bd6 {[%emt 0:00:21]} 11. c4 {[%emt 0:07:46]} Bb4 {[%emt 0:05:05]} 12. Re2 {[%emt 0:02:55]} O-O {[%emt 0:01:29]} 13. a3 {[%emt 0:00:19]} Ba5 {[%emt 0:05:02]} 14. Rc1 {[%emt 0:04:50]} a6 {[%emt 0:17:21]} 15. c5 {[%emt 0:03:54]} Bg4 {[%emt 0:03:27]} 16. Ng3 {[%emt 0:01:14]} Qg6 {[%emt 0:01:05]} 17. Bf4 {[%emt 0:01:30]} Bxf3 {[%emt 0:02:31]} 18. gxf3 {[%emt 0:00:06]} Qf6 {[%emt 0:00:28]} 19. Re4 {[%emt 0:00:28]} g5 {[%emt 0:01:28]} 20. Bxg5 {[%emt 0:00:03]} Qg6 {[%emt 0:04:00]} 21. Be7 {[%emt 1:15:42]} Nxe7 {[%emt 0:02:21]} 22. Rg4 {[%emt 0:00:00]} Qxg4 {[%emt 0:01:26]} 23. fxg4 {[%emt 0:00:00]} c6 {[%emt 0:00:49]} 24. Qxd4 {[%emt 0:00:00]} Rad8 {[%emt 0:00:23]} 25. Qf6 {[%emt 0:00:00]} Ng6 {[%emt 0:00:51]} 26. Nf5 {[%emt 0:00:00]} Bc3 {[%emt 0:00:55]} 27. Nh6# {[%emt 0:00:00]} 1-0